fUSD/lending_fUSD_20240216
["ID","MTS","AMOUNT","RATE_DAILY","PERIOD"]
[314259735,1708120237736,-500.0,0.00049589,60]
[314259736,1708120237746,-1000.23,0.00049589,60]
[314259737,1708120237755,-500.0,0.00049589,60]
[314259738,1708120237765,-500.0,0.00049589,60]
[314259739,1708120237775,-500.0,0.00049589,60]
[314259740,1708120237786,-500.0,0.00049589,60]
[314259741,1708120237796,-1302.71,0.00049589,60]
[314259742,1708120237806,-410.83833902,0.00049589,60]
[314259743,1708120237817,-500.0,0.00049589,60]
[314259744,1708120237828,-500.0,0.00049589,60]
[314259746,1708120237837,-500.0,0.00049589,60]
[314259748,1708120237846,-536.03,0.00049589,60]
[314259750,1708120237857,-500.0,0.00049589,60]
[314259752,1708120237866,-612.94,0.00049589,60]
[314259754,1708120237876,-500.0,0.00049589,60]
[314259756,1708120237886,-500.0,0.00049589,60]
[314259758,1708120237895,-500.0,0.00049589,60]
[314259760,1708120237905,-500.0,0.00049589,60]
[314259762,1708120237914,-500.0,0.00049589,60]
[314259764,1708120237924,-500.0,0.00049589,60]
[314259766,1708120237933,-500.0,0.00049589,60]
[314259768,1708120237944,-500.0,0.00049589,60]
[314259771,1708120237953,-500.0,0.00049589,60]
[314259773,1708120237962,-392.89665886,0.00049589,60]
[314259775,1708120237972,-500.0,0.00049589,60]
[314259778,1708120237982,-575.45,0.00049589,60]
[314259780,1708120237992,-311.92,0.00049589,60]
[314259781,1708120238001,-500.0,0.00049589,60]
[314259782,1708120238012,-500.0,0.00049589,60]
[314259783,1708120238022,-500.0,0.00049589,60]
[314259784,1708120238032,-500.0,0.00049589,60]
[314259785,1708120238041,-500.0,0.00049589,60]
[314259786,1708120238051,-500.0,0.00049589,60]
[314259787,1708120238060,-500.0,0.00049589,60]
[314259788,1708120238070,-1557.75,0.00049589,60]
[314259789,1708120238080,-500.0,0.00049589,60]
[314259790,1708120238090,-500.0,0.00049589,60]
[314259791,1708120238099,-500.0,0.00049589,60]
[314259792,1708120238109,-500.0,0.00049589,60]
[314259793,1708120238119,-535.55,0.00049589,60]
[314259794,1708120238128,-500.0,0.00049589,60]
[314259795,1708120238138,-500.0,0.00049589,60]
[314259796,1708120238148,-500.0,0.00049589,60]
[314259797,1708120238157,-500.0,0.00049589,60]
[314259798,1708120238167,-697.5,0.00049589,60]
[314259799,1708120238176,-500.0,0.00049589,60]
[314259800,1708120238187,-500.0,0.00049589,60]
[314259801,1708120238196,-500.0,0.00049589,60]
[314259802,1708120238206,-500.0,0.00049589,60]
[314259803,1708120238215,-875.42,0.00049589,60]
[314259804,1708120238224,-500.0,0.00049589,60]
[314259805,1708120238234,-500.0,0.00049589,60]
[314259806,1708120238245,-500.0,0.00049589,60]
[314259807,1708120238259,-500.0,0.00049589,7]
[314259808,1708120238268,-500.0,0.00049589,60]
[314259809,1708120238278,-500.0,0.00049589,60]
[314259810,1708120238289,-500.0,0.00049589,60]
[314259811,1708120238299,-500.0,0.00049589,60]
[314259812,1708120238309,-500.0,0.00049589,60]
[314259813,1708120238318,-500.0,0.00049589,60]
[314259814,1708120238329,-500.0,0.00049589,60]
[314259815,1708120238339,-500.0,0.00049589,60]
[314259816,1708120238348,-500.0,0.00049589,60]
[314259817,1708120238358,-500.0,0.00049589,60]
[314259818,1708120238367,-500.0,0.00049589,60]
[314259819,1708120238377,-500.0,0.00049589,60]
[314259820,1708120238387,-500.0,0.00049589,60]
[314259821,1708120238396,-500.0,0.00049589,60]
[314259822,1708120238406,-687.78,0.00049589,60]
[314259823,1708120238415,-500.0,0.00049589,60]
[314259824,1708120238424,-500.0,0.00049589,2]
[314259825,1708120238435,-500.0,0.00049589,60]
[314259826,1708120238444,-500.0,0.00049589,60]
[314259827,1708120238454,-500.0,0.00049589,60]
[314259828,1708120238463,-916.8,0.00049589,60]
[314259829,1708120238473,-500.0,0.00049589,60]
[314259830,1708120238483,-500.0,0.00049589,60]
[314259831,1708120238492,-500.0,0.00049589,60]
[314259832,1708120238502,-500.0,0.00049589,60]
[314259833,1708120238511,-500.0,0.00049589,60]
[314259834,1708120238521,-3519.12,0.00049589,60]
[314259835,1708120238530,-500.0,0.00049589,60]
[314259836,1708120238539,-500.0,0.00049589,60]
[314259837,1708120238548,-3634.05,0.00049589,60]
[314259838,1708120238558,-500.0,0.00049589,60]
[314259839,1708120238567,-546.8,0.00049589,60]
[314259840,1708120238576,-502.47,0.00049589,60]
[314259841,1708120238585,-500.0,0.00049589,60]
[314259842,1708120238594,-666.53,0.00049589,60]
[314259843,1708120238604,-500.0,0.00049589,60]
[314259844,1708120238614,-622.36,0.00049589,60]
[314259845,1708120238623,-500.0,0.00049589,60]
[314259846,1708120238632,-1018.67,0.00049589,60]
[314259847,1708120238642,-500.0,0.00049589,60]
[314259848,1708120238652,-5073.37,0.00049589,60]
[314259849,1708120238661,-500.0,0.00049589,60]
[314259850,1708120238671,-226.87715145,0.00049589,60]
[314259851,1708120238680,-1690.78,0.00049589,60]
[314259852,1708120238690,-637.49,0.00049589,60]
[314259853,1708120238699,-1737.53,0.00049589,60]
[314259854,1708120238709,-500.0,0.00049589,60]
[314259855,1708120238719,-598.25,0.00049589,60]
[314259856,1708120238728,-500.0,0.00049589,60]
[314259857,1708120238737,-500.0,0.00049589,60]
[314259858,1708120238746,-500.0,0.00049589,60]
[314259859,1708120238756,-942.91,0.00049589,60]
[314259860,1708120238765,-550.83,0.00049589,60]
[314259861,1708120238775,-500.0,0.00049589,60]
[314259862,1708120238785,-500.0,0.00049589,60]
[314259863,1708120238794,-500.0,0.00049589,60]
[314259864,1708120238803,-500.0,0.00049589,60]
[314259865,1708120238812,-500.0,0.00049589,60]
[314259866,1708120238821,-500.0,0.00049589,60]
[314259867,1708120238831,-576.25,0.00049589,60]
[314259868,1708120238840,-500.0,0.00049589,60]
[314259869,1708120238850,-500.0,0.00049589,60]
[314259870,1708120238860,-500.0,0.00049589,60]
[314259871,1708120238869,-500.0,0.00049589,60]
[314259872,1708120238878,-500.0,0.00049589,60]
[314259873,1708120238888,-500.0,0.00049589,60]
[314259874,1708120238898,-500.0,0.00049589,60]
[314259875,1708120238907,-1062.33,0.00049589,60]
[314259876,1708120238916,-500.0,0.00049589,60]
[314259877,1708120238926,-174.73,0.00049589,60]
[314259878,1708120238935,-500.0,0.00049589,60]
[314259879,1708120238946,-560.0,0.00049589,60]
[314259880,1708120238955,-500.0,0.00049589,60]
[314259881,1708120239236,-500.0,0.00049589,60]
[314259882,1708120239256,-500.0,0.00049589,60]
[314259883,1708120239266,-500.0,0.00049589,60]
[314259884,1708120239276,-500.0,0.00049589,60]
[314259885,1708120239287,-1332.42,0.00049589,14]
[314259886,1708120239297,-500.0,0.00049589,60]
[314259887,1708120239306,-500.0,0.00049589,60]
[314259889,1708120239316,-500.0,0.00049589,60]
[314259890,1708120239326,-500.0,0.00049589,60]
[314259891,1708120239337,-1210.56,0.00049589,60]
[314259893,1708120239347,-1472.57,0.00049589,60]
[314259894,1708120239356,-2165.43,0.00049589,60]
[314259895,1708120239366,-500.0,0.00049589,60]
[314259896,1708120239375,-500.0,0.00049589,60]
[314259897,1708120239384,-500.0,0.00049589,60]
[314259898,1708120239394,-500.0,0.00049589,60]
[314259899,1708120239403,-500.0,0.00049589,60]
[314259900,1708120239414,-688.94,0.00049589,60]
[314259901,1708120239423,-500.0,0.00049589,60]
[314259902,1708120239433,-500.0,0.00049589,60]
[314259903,1708120239443,-500.0,0.00049589,60]
[314259904,1708120239453,-500.0,0.00049589,60]
[314259905,1708120239462,-500.0,0.00049589,60]
[314259906,1708120239471,-1115.51,0.00049589,60]
[314259907,1708120239480,-500.0,0.00049589,60]
[314259908,1708120239489,-500.0,0.00049589,60]
[314259909,1708120239499,-500.0,0.00049589,60]
[314259910,1708120239508,-500.0,0.00049589,60]
[314259911,1708120239517,-500.0,0.00049589,60]
[314259912,1708120239526,-803.22,0.00049589,60]
[314259913,1708120239536,-500.0,0.00049589,60]
[314259914,1708120239545,-500.0,0.00049589,60]
[314259915,1708120239555,-500.0,0.00049589,60]
[314259916,1708120239564,-500.0,0.00049589,60]
[314259917,1708120239573,-500.0,0.00049589,60]
[314259918,1708120239582,-500.0,0.00049589,60]
[314259919,1708120239591,-500.0,0.00049589,60]
[314259920,1708120239601,-500.0,0.00049589,60]
[314259921,1708120239611,-500.0,0.00049589,60]
[314259922,1708120239620,-536.41,0.00049589,60]
[314259923,1708120239629,-500.0,0.00049589,60]
[314259924,1708120239639,-500.0,0.00049589,60]
[314259925,1708120239648,-1988.92,0.00049589,60]
[314259926,1708120239658,-500.0,0.00049589,60]
[314259927,1708120239667,-500.0,0.00049589,60]
[314259928,1708120239677,-642.82,0.00049589,60]
[314259929,1708120239686,-500.0,0.00049589,60]
[314259930,1708120239697,-500.0,0.00049589,60]
[314259931,1708120239706,-14075.16,0.00049589,60]
[314259932,1708120239716,-151.0,0.00049777,2]
[314259933,1708120239725,-967.75336971,0.00049813,5]
[314259934,1708120239735,-50865.99112245,0.00049853,11]
[314259935,1708120240149,-500.0,0.00049315,60]
[314259936,1708120240170,-500.0,0.00049589,60]
[314259937,1708120240192,-9000.0,0.00049853,11]
[314259938,1708120240501,-250.0,0.0004463,2]
[314259939,1708120240522,-150.168,0.0004463,2]
[314259940,1708120240542,-150.0,0.0004763,2]
[314259941,1708120240562,-504.99939546,0.00048536,120]
[314259942,1708120240583,-8944.83260454,0.00049853,11]
[314259943,1708120240622,-160.146,0.0004463,2]
[314259944,1708120240644,-9839.854,0.00049853,11]
[314259945,1708120240709,-150.0,0.0004763,2]
[314259946,1708120240731,-4141.06308541,0.00049853,11]
[314259947,1708120240752,-500.0,0.00049862,60]
[314259948,1708120240777,-500.0,0.00049862,60]
[314259949,1708120240799,-500.0,0.00049862,60]
[314259950,1708120240823,-500.0,0.00049862,60]
[314259951,1708120240845,-500.0,0.00049862,60]
[314259952,1708120240866,-500.0,0.00049862,60]
[314259953,1708120240887,-500.0,0.00049862,60]
[314259954,1708120240909,-500.0,0.00049862,60]
[314259955,1708120240930,-500.0,0.00049862,60]
[314259956,1708120240951,-500.0,0.00049862,60]
[314259957,1708120240973,-210.83749222,0.00049862,60]
[314259958,1708120240995,-498.09942237,0.00049862,60]
[314259959,1708120241144,-1.90057763,0.00049862,60]
[314259961,1708120241153,-500.0,0.00049862,60]
[314259962,1708120241163,-500.0,0.00049862,60]
[314259963,1708120241172,-500.0,0.00049862,60]
[314259964,1708120241181,-500.0,0.00049863,60]
[314259965,1708120241192,-500.0,0.00049863,60]
[314259966,1708120241201,-500.0,0.00049863,60]
[314259967,1708120241211,-213.09942237,0.00049863,60]
[314259968,1708120241223,-286.90057763,0.00049863,60]
[314259969,1708120241232,-500.0,0.00049863,60]
[314259970,1708120241245,-500.0,0.00049863,60]
[314259971,1708120241255,-500.0,0.00049863,60]
[314259972,1708120241265,-500.0,0.00049863,60]
[314259973,1708120241274,-500.0,0.00049863,60]
[314259974,1708120241284,-500.0,0.00049863,60]
[314259975,1708120241294,-500.0,0.00049863,60]
[314259976,1708120241303,-500.0,0.00049863,60]
[314259977,1708120241312,-500.0,0.00049863,60]
[314259978,1708120241322,-500.0,0.00049863,60]
[314259979,1708120241332,-500.0,0.00049863,60]
[314259980,1708120241342,-645.65,0.00049863,60]
[314259981,1708120241351,-555.63,0.00049863,60]
[314259982,1708120241360,-500.0,0.00049863,60]
[314259983,1708120241370,-584.92,0.00049863,60]
[314259984,1708120241380,-500.0,0.00049863,60]
[314259985,1708120241389,-441.74,0.00049863,60]
[314259986,1708120241398,-500.0,0.00049863,60]
[314259987,1708120241407,-716.46,0.00049863,60]
[314259988,1708120241418,-500.0,0.00049863,60]
[314259989,1708120241427,-500.0,0.00049863,60]
[314259990,1708120241436,-500.0,0.00049863,60]
[314259991,1708120241446,-500.0,0.00049863,60]
[314259992,1708120241455,-500.0,0.00049863,60]
[314259993,1708120241464,-700.31,0.00049863,60]
[314259994,1708120241474,-500.0,0.00049863,60]
[314259995,1708120241485,-553.35235166,0.00049863,60]
[314259996,1708120241494,-500.0,0.00049863,60]
[314259997,1708120241503,-500.0,0.00049863,2]
[314259998,1708120241513,-500.0,0.00049863,60]
[314259999,1708120241523,-500.0,0.00049863,60]
[314260000,1708120241533,-500.0,0.00049863,60]
[314260001,1708120241542,-309.77,0.00049863,60]
[314260002,1708120241551,-500.0,0.00049863,60]
[314260003,1708120241560,-314.02,0.00049863,60]
[314260004,1708120241569,-500.0,0.00049863,60]
[314260005,1708120241579,-500.0,0.00049863,60]
[314260006,1708120241588,-500.0,0.00049863,60]
[314260007,1708120241609,-500.0,0.00049863,60]
[314260008,1708120241618,-500.0,0.00049863,60]
[314260009,1708120241627,-500.0,0.00049863,60]
[314260010,1708120241637,-500.0,0.00049863,60]
[314260011,1708120241646,-500.0,0.00049863,60]
[314260012,1708120241655,-500.0,0.00049863,2]
[314260013,1708120241664,-500.0,0.00049863,60]
[314260014,1708120241674,-520.96,0.00049863,60]
[314260015,1708120241683,-628.05951624,0.00049863,60]
[314260016,1708120241694,-500.0,0.00049863,60]
[314260017,1708120241703,-500.0,0.00049863,60]
[314260018,1708120241713,-500.0,0.00049863,60]
[314260019,1708120241722,-500.0,0.00049863,60]
[314260020,1708120241731,-500.0,0.00049863,60]
[314260021,1708120241740,-500.0,0.00049863,60]
[314260022,1708120241750,-500.0,0.00049863,60]
[314260023,1708120241759,-500.0,0.00049863,60]
[314260024,1708120241769,-500.0,0.00049863,60]
[314260025,1708120241778,-500.0,0.00049863,60]
[314260026,1708120241788,-500.0,0.00049863,60]
[314260027,1708120241798,-500.0,0.00049863,60]
[314260028,1708120241807,-500.0,0.00049863,60]
[314260029,1708120241817,-500.0,0.00049863,60]
[314260030,1708120241826,-500.0,0.00049863,60]
[314260031,1708120241835,-500.0,0.00049863,60]
[314260032,1708120241845,-500.0,0.00049863,30]
[314260033,1708120241854,-500.0,0.00049863,60]
[314260034,1708120241863,-500.0,0.00049863,2]
[314260035,1708120241873,-150.0,0.00049863,60]
[314260036,1708120241882,-500.0,0.00049863,60]
[314260037,1708120241892,-313.94,0.00049863,60]
[314260038,1708120241903,-346.75,0.00049863,60]
[314260039,1708120241914,-325.5,0.00049863,60]
[314260040,1708120241925,-1593.07,0.00049863,60]
[314260041,1708120241934,-615.74,0.00049863,60]
[314260042,1708120241944,-611.18,0.00049863,60]
[314260043,1708120241953,-500.0,0.00049863,60]
[314260044,1708120241962,-500.0,0.00049863,60]
[314260045,1708120241971,-500.0,0.00049863,60]
[314260046,1708120241980,-500.0,0.00049863,60]
[314260047,1708120241990,-500.0,0.00049863,60]
[314260048,1708120242000,-500.0,0.00049863,60]
[314260049,1708120242009,-500.0,0.00049863,60]
[314260050,1708120242019,-500.0,0.00049863,60]
[314260051,1708120242028,-500.0,0.00049863,60]
[314260052,1708120242039,-500.0,0.00049863,60]
[314260053,1708120242048,-500.0,0.00049863,60]
[314260054,1708120242058,-500.0,0.00049863,60]
[314260055,1708120242067,-500.0,0.00049863,2]
[314260056,1708120242077,-500.0,0.00049863,60]
[314260057,1708120242086,-500.0,0.00049863,60]
[314260058,1708120242095,-500.0,0.00049863,60]
[314260059,1708120242105,-500.0,0.00049863,60]
[314260060,1708120242115,-500.0,0.00049863,60]
[314260061,1708120242125,-500.0,0.00049863,60]
[314260062,1708120242135,-500.0,0.00049863,60]
[314260063,1708120242145,-5792.28,0.00049863,60]
[314260064,1708120242154,-500.0,0.00049863,60]
[314260065,1708120242164,-767.55,0.00049863,60]
[314260066,1708120242173,-755.23,0.00049863,60]
[314260067,1708120242182,-611.81448138,0.00049863,60]
[314260068,1708120242193,-500.0,0.00049863,60]
[314260069,1708120242202,-500.0,0.00049863,60]
[314260070,1708120242212,-500.0,0.00049863,60]
[314260071,1708120242222,-500.0,0.00049863,60]
[314260072,1708120242231,-1302.71,0.00049863,60]
[314260073,1708120242242,-500.0,0.00049863,60]
[314260074,1708120242252,-500.0,0.00049863,60]
[314260076,1708120242265,-500.0,0.00049863,60]
[314260077,1708120242275,-536.03,0.00049863,60]
[314260079,1708120242285,-500.0,0.00049863,60]
[314260081,1708120242294,-612.94,0.00049863,60]
[314260082,1708120242305,-500.0,0.00049863,60]
[314260083,1708120242314,-500.0,0.00049863,60]
[314260085,1708120242324,-500.0,0.00049863,60]
[314260086,1708120242336,-500.0,0.00049863,60]
[314260088,1708120242345,-500.0,0.00049863,60]
[314260089,1708120242356,-500.0,0.00049863,60]
[314260090,1708120242366,-500.0,0.00049863,60]
[314260091,1708120242375,-500.0,0.00049863,60]
[314260092,1708120242385,-500.0,0.00049863,60]
[314260093,1708120242394,-500.0,0.00049863,60]
[314260094,1708120242403,-575.45,0.00049863,60]
[314260095,1708120242413,-500.0,0.00049863,60]
[314260096,1708120242422,-500.0,0.00049863,60]
[314260097,1708120242432,-500.0,0.00049863,60]
[314260098,1708120242442,-500.0,0.00049863,60]
[314260099,1708120242452,-500.0,0.00049863,60]
[314260100,1708120242461,-500.0,0.00049863,60]
[314260101,1708120242470,-41.11359302,0.00049863,60]
[314260102,1708120242492,-359.99149375,0.00049863,60]
[314260103,1708120242505,-98.89491323,0.00049863,60]
[314260104,1708120242515,-202.16726691,0.00049863,60]
[314260105,1708120242893,-1355.58273309,0.00049863,60]
[314260106,1708120242902,-500.0,0.00049863,60]
[314260107,1708120242914,-500.0,0.00049863,60]
[314260109,1708120242927,-500.0,0.00049863,60]
[314260110,1708120242939,-500.0,0.00049863,60]
[314260111,1708120242951,-535.55,0.00049863,60]
[314260112,1708120242964,-500.0,0.00049863,60]
[314260113,1708120242976,-500.0,0.00049863,60]
[314260114,1708120242988,-500.0,0.00049863,60]
[314260115,1708120242999,-500.0,0.00049863,60]
[314260116,1708120243012,-697.5,0.00049863,60]
[314260117,1708120243024,-500.0,0.00049863,60]
[314260118,1708120243034,-500.0,0.00049863,60]
[314260119,1708120243045,-500.0,0.00049863,60]
[314260120,1708120243055,-500.0,0.00049863,60]
[314260121,1708120243065,-875.42,0.00049863,60]
[314260122,1708120243075,-500.0,0.00049863,60]
[314260123,1708120243086,-500.0,0.00049863,60]
[314260124,1708120243095,-500.0,0.00049863,60]
[314260125,1708120243106,-500.0,0.00049863,7]
[314260126,1708120243117,-500.0,0.00049863,60]
[314260127,1708120243128,-500.0,0.00049863,60]
[314260128,1708120243138,-500.0,0.00049863,60]
[314260129,1708120243148,-23.44726691,0.00049863,60]
[314260130,1708120243163,-310.58994991,0.00049863,60]
[314260131,1708120243202,-165.96278318,0.00049863,60]
[314260132,1708120243225,-500.0,0.00049863,60]
[314260133,1708120243253,-334.03721682,0.00049863,60]
[314260134,1708120243428,-150.0,0.0004463,2]
[314260135,1708120243453,-165.96278318,0.00049863,60]
[314260136,1708120243477,-500.0,0.00049863,60]
[314260137,1708120243499,-184.03721682,0.00049863,60]
[314260138,1708120243750,-150.0,0.0004763,2]
[314260139,1708120243774,-249.71,0.00049853,10]
[314260140,1708120243799,-315.96278318,0.00049863,60]
[314260141,1708120243823,-284.32721682,0.00049863,60]
[314260142,1708120243842,-215.67278318,0.00049863,60]
[314260143,1708120243852,-500.0,0.00049863,60]
[314260144,1708120243862,-500.0,0.00049863,60]
[314260145,1708120243873,-500.0,0.00049863,60]
[314260146,1708120243883,-500.0,0.00049863,60]
[314260147,1708120243894,-377.58356782,0.00049863,60]
[314260148,1708120243908,-122.41643218,0.00049863,60]
[314260149,1708120243918,-687.78,0.00049863,60]
[314260150,1708120243929,-500.0,0.00049863,60]
[314260151,1708120243939,-500.0,0.00049863,2]
[314260152,1708120243951,-500.0,0.00049863,60]
[314260153,1708120243962,-500.0,0.00049863,60]
[314260154,1708120243973,-500.0,0.00049863,60]
[314260155,1708120243984,-916.8,0.00049863,60]
[314260156,1708120243996,-34.37982411,0.00049863,60]
[314260157,1708120244011,-465.62017589,0.00049863,60]
[314260158,1708120244022,-500.0,0.00049863,60]
[314260159,1708120244033,-262.53619044,0.00049863,60]
[314260160,1708120244046,-237.46380956,0.00049863,60]
[314260161,1708120244057,-500.0,0.00049863,60]
[314260162,1708120244067,-500.0,0.00049863,60]
[314260163,1708120244077,-3519.12,0.00049863,60]
[314260164,1708120244087,-500.0,0.00049863,60]
[314260165,1708120244097,-500.0,0.00049863,60]
[314260166,1708120244106,-3634.05,0.00049863,60]
[314260167,1708120244116,-500.0,0.00049863,60]
[314260168,1708120244126,-546.8,0.00049863,60]
[314260169,1708120244135,-502.47,0.00049863,60]
[314260170,1708120244144,-500.0,0.00049863,60]
[314260171,1708120244155,-666.53,0.00049863,60]
[314260172,1708120244165,-622.36,0.00049863,60]
[314260173,1708120244174,-500.0,0.00049863,60]
[314260174,1708120244184,-500.0,0.00049863,60]
[314260175,1708120244194,-1018.67,0.00049863,60]
[314260176,1708120244204,-279.89835983,0.00049863,60]
[314260177,1708120244215,-1994.77807301,0.00049863,60]
[314260178,1708120244229,-3078.59192699,0.00049863,60]
[314260179,1708120244239,-500.0,0.00049863,60]
[314260180,1708120244249,-1690.78,0.00049863,60]
[314260181,1708120244263,-637.49,0.00049863,60]
[314260182,1708120244273,-1737.53,0.00049863,60]
[314260183,1708120244282,-500.0,0.00049863,60]
[314260184,1708120244292,-598.25,0.00049863,60]
[314260185,1708120244302,-500.0,0.00049863,60]
[314260186,1708120244312,-500.0,0.00049863,60]
[314260187,1708120244322,-500.0,0.00049863,60]
[314260188,1708120244333,-942.91,0.00049863,60]
[314260189,1708120244344,-550.83,0.00049863,60]
[314260190,1708120244355,-500.0,0.00049863,60]
[314260191,1708120244365,-500.0,0.00049863,60]
[314260192,1708120244375,-500.0,0.00049863,60]
[314260193,1708120244385,-500.0,0.00049863,60]
[314260194,1708120244394,-500.0,0.00049863,60]
[314260195,1708120244404,-500.0,0.00049863,60]
[314260196,1708120244414,-576.25,0.00049863,60]
[314260197,1708120244423,-500.0,0.00049863,60]
[314260198,1708120244433,-500.0,0.00049863,60]
[314260199,1708120244443,-500.0,0.00049863,60]
[314260200,1708120244453,-500.0,0.00049863,60]
[314260201,1708120244464,-500.0,0.00049863,60]
[314260202,1708120244474,-118.17086152,0.00049863,60]
[314260203,1708120244486,-381.82913848,0.00049863,60]
[314260204,1708120244496,-190.64,0.00049863,60]
[314260205,1708120244505,-1062.33,0.00049863,60]
[314260206,1708120244515,-500.0,0.00049863,60]
[314260207,1708120244525,-211.78875681,0.00049863,60]
[314260208,1708120244550,-288.21124319,0.00049863,60]
[314260209,1708120244560,-234.28373667,0.00049863,60]
[314260210,1708120244575,-325.71626333,0.00049863,60]
[314260211,1708120244585,-39.61431622,0.00049863,60]
[314260212,1708120244597,-460.38568378,0.00049863,60]
[314260213,1708120244607,-500.0,0.00049863,60]
[314260214,1708120244617,-500.0,0.00049863,60]
[314260215,1708120244629,-500.0,0.00049863,60]
[314260216,1708120244639,-499.15098921,0.00049863,14]
[314260217,1708120244665,-250.0,0.00049213,111]
[314260218,1708120244675,-833.26901079,0.00049863,14]
[314260219,1708120244684,-500.0,0.00049863,60]
[314260220,1708120244695,-500.0,0.00049863,60]
[314260221,1708120244705,-500.0,0.00049863,60]
[314260222,1708120244714,-500.0,0.00049863,60]
[314260223,1708120244725,-1210.56,0.00049863,60]
[314260224,1708120244734,-1120.21626703,0.00049863,60]
[314260229,1708120245502,-368.48169456,0.000457,7]
[314260230,1708120245514,-294.50525206,0.000457,7]
[314260252,1708120246213,-429.93888888,0.000457,7]
[314260253,1708120246225,-3982.31875177,0.000457,7]
[314260254,1708120246235,-211.57641166,0.00049215,2]
[314260255,1708120246245,-352.35373297,0.00049863,60]
[314260256,1708120246258,-24.7511036,0.00049863,60]
[314260257,1708120246273,-2140.6788964,0.00049863,60]
[314260258,1708120246284,-500.0,0.00049863,60]
[314260259,1708120246294,-500.0,0.00049863,60]
[314260260,1708120246303,-500.0,0.00049863,60]
[314260261,1708120246313,-500.0,0.00049863,60]
[314260262,1708120246323,-500.0,0.00049863,60]
[314260263,1708120246335,-688.94,0.00049863,60]
[314260264,1708120246734,-500.0,0.00049863,60]
[314260265,1708120246757,-500.0,0.00049863,60]
[314260266,1708120246773,-500.0,0.00049863,60]
[314260267,1708120246792,-500.0,0.00049863,60]
[314260268,1708120246801,-500.0,0.00049863,60]
[314260269,1708120246810,-1115.51,0.00049863,60]
[314260270,1708120246820,-500.0,0.00049863,60]
[314260271,1708120246830,-128.10633961,0.00049863,60]
[314260272,1708120246843,-371.89366039,0.00049863,60]
[314260273,1708120246853,-500.0,0.00049863,60]
[314260274,1708120246863,-500.0,0.00049863,60]
[314260275,1708120246874,-500.0,0.00049863,60]
[314260276,1708120246883,-803.22,0.00049863,60]
[314260277,1708120246893,-500.0,0.00049863,60]
[314260278,1708120246905,-500.0,0.00049863,60]
[314260279,1708120246914,-500.0,0.00049863,60]
[314260280,1708120246924,-500.0,0.00049863,60]
[314260281,1708120246933,-500.0,0.00049863,60]
[314260282,1708120246944,-500.0,0.00049863,60]
[314260283,1708120246953,-500.0,0.00049863,60]
[314260284,1708120246963,-500.0,0.00049863,60]
[314260285,1708120246973,-500.0,0.00049863,60]
[314260286,1708120246982,-536.41,0.00049863,60]
[314260287,1708120246991,-500.0,0.00049863,60]